[Event "*** Titled Tuesday 3|2 Blitz"]
[Site "Chess.com"]
[Date "2016.09.06"]
[Round "3"]
[White "goingin33"]
[Black "talaicito"]
[Result "1-0"]
[WhiteElo "2142"]
[BlackElo "1961"]
[TimeControl "180+2"]
[EndTime "11:33:57 PDT"]
[Termination "goingin33 won on time"]

1. e4 {[%clk 0:03:01.9]} 1... e6 {[%clk 0:03:01.4]} 2. d4 {[%clk 0:03:02.4]}
2... d5 {[%clk 0:03:02.9]} 3. Nc3 {[%clk 0:03:04.1]} 3... Bb4 {[%clk 0:03:03.5]}
4. exd5 {[%clk 0:03:04.9]} 4... Qxd5 {[%clk 0:03:03.3]} 5. Nf3 {[%clk
0:03:03.8]} 5... b6 {[%clk 0:02:58.6]} 6. Bd2 {[%clk 0:03:02.8]} 6... Bxc3
{[%clk 0:02:58.4]} 7. bxc3 {[%clk 0:03:04.7]} 7... Bb7 {[%clk 0:02:53.7]} 8. c4
{[%clk 0:03:00.8]} 8... Qd8 {[%clk 0:02:52.2]} 9. Be3 {[%clk 0:02:58.2]} 9...
Nf6 {[%clk 0:02:49.5]} 10. h3 {[%clk 0:02:59.4]} 10... Nbd7 {[%clk 0:02:46.4]}
11. Be2 {[%clk 0:03:00.5]} 11... O-O {[%clk 0:02:46.7]} 12. O-O {[%clk
0:03:01.3]} 12... c5 {[%clk 0:02:46.7]} 13. c3 {[%clk 0:03:02.6]} 13... Rc8
{[%clk 0:02:46]} 14. Rc1 {[%clk 0:03:03.3]} 14... Qc7 {[%clk 0:02:46.1]} 15. Qa4
{[%clk 0:02:51.8]} 15... Bc6 {[%clk 0:02:39.4]} 16. Qa3 {[%clk 0:02:51.9]} 16...
Ne4 {[%clk 0:02:17.5]} 17. Rfd1 {[%clk 0:02:50.8]} 17... Ndf6 {[%clk 0:02:03.8]}
18. Ne5 {[%clk 0:02:39.2]} 18... Ba8 {[%clk 0:01:53.3]} 19. Bf4 {[%clk
0:02:16.1]} 19... Qb7 {[%clk 0:01:21]} 20. f3 {[%clk 0:02:15.8]} 20... Nh5
{[%clk 0:00:58.9]} 21. Bh2 {[%clk 0:01:40.4]} 21... Neg3 {[%clk 0:00:57.8]} 22.
Bd3 {[%clk 0:01:33]} 22... f6 {[%clk 0:00:56.5]} 23. Ng4 {[%clk 0:01:31.7]}
23... Rfd8 {[%clk 0:00:53.9]} 24. Qb2 {[%clk 0:01:31.6]} 24... Qf7 {[%clk
0:00:30.3]} 25. Qc2 {[%clk 0:01:20.6]} 25... f5 {[%clk 0:00:20.4]} 26. Ne5
{[%clk 0:01:20.3]} 26... Qf6 {[%clk 0:00:20.3]} 27. Qf2 {[%clk 0:01:17.9]} 27...
Qh4 {[%clk 0:00:20.6]} 28. Bc2 {[%clk 0:00:52.6]} 28... f4 {[%clk 0:00:20.8]}
29. Bb1 {[%clk 0:00:46.4]} 29... cxd4 {[%clk 0:00:21]} 30. cxd4 {[%clk
0:00:47.3]} 30... Rf8 {[%clk 0:00:21.4]} 31. Qc2 {[%clk 0:00:47.8]} 31... Nf5
{[%clk 0:00:18]} 32. d5 {[%clk 0:00:44.7]} 32... Bxd5 {[%clk 0:00:13.8]} 33. Qe2
{[%clk 0:00:39.8]} 33... Ba8 {[%clk 0:00:08.3]} 34. Nd7 {[%clk 0:00:40.9]} 34...
Rf7 {[%clk 0:00:08.4]} 35. Qxe6 {[%clk 0:00:36.9]} 35... Ne3 {[%clk 0:00:06.1]}
36. Ne5 {[%clk 0:00:32.9]} 1-0

[Event "*** Titled Tuesday 3|2 Blitz"]
[Site "Chess.com"]
[Date "2016.09.06"]
[Round "3"]
[White "Iuri_Shkuro"]
[Black "FairChess_on_YouTube"]
[Result "0-1"]
[WhiteElo "2490"]
[BlackElo "2711"]
[TimeControl "180+2"]
[EndTime "11:34:31 PDT"]
[Termination "FairChess_on_YouTube won by resignation"]

1. Nc3 {[%clk 0:02:44.3]} 1... d5 {[%clk 0:02:59.5]} 2. Nf3 {[%clk 0:02:41.8]}
2... Nf6 {[%clk 0:02:58.7]} 3. d3 {[%clk 0:02:42]} 3... Nc6 {[%clk 0:02:57.9]}
4. g3 {[%clk 0:02:42.5]} 4... e5 {[%clk 0:02:58]} 5. Bg2 {[%clk 0:02:43.5]} 5...
h6 {[%clk 0:02:59.4]} 6. O-O {[%clk 0:02:44.4]} 6... Bb4 {[%clk 0:03:00.1]} 7.
a3 {[%clk 0:02:42.2]} 7... Bxc3 {[%clk 0:03:01.1]} 8. bxc3 {[%clk 0:02:43.3]}
8... O-O {[%clk 0:03:02.2]} 9. Rb1 {[%clk 0:02:43]} 9... b6 {[%clk 0:03:03.3]}
10. c4 {[%clk 0:02:42.7]} 10... Be6 {[%clk 0:02:54.3]} 11. cxd5 {[%clk
0:02:42.2]} 11... Bxd5 {[%clk 0:02:54.6]} 12. c4 {[%clk 0:02:41.3]} 12... Bxf3
{[%clk 0:02:55]} 13. Bxf3 {[%clk 0:02:41.7]} 13... Qd7 {[%clk 0:02:55.7]} 14.
Bb2 {[%clk 0:02:38.6]} 14... Rfe8 {[%clk 0:02:52.6]} 15. Bg2 {[%clk 0:02:37.8]}
15... Rad8 {[%clk 0:02:52.7]} 16. c5 {[%clk 0:02:30.9]} 16... Nd4 {[%clk
0:02:49.4]} 17. Rc1 {[%clk 0:02:08.8]} 17... Qe7 {[%clk 0:02:25.6]} 18. e3
{[%clk 0:02:05.7]} 18... Ne6 {[%clk 0:02:16]} 19. cxb6 {[%clk 0:02:03.2]} 19...
axb6 {[%clk 0:02:11.1]} 20. Bxe5 {[%clk 0:02:03.6]} 20... Qxa3 {[%clk
0:02:11.4]} 21. Bxf6 {[%clk 0:02:02.6]} 21... gxf6 {[%clk 0:02:13.3]} 22. d4
{[%clk 0:02:01.3]} 22... Qf8 {[%clk 0:02:08.2]} 23. Qf3 {[%clk 0:01:58.5]} 23...
Qg7 {[%clk 0:02:04.5]} 24. h4 {[%clk 0:01:59.2]} 24... c5 {[%clk 0:02:04.1]} 25.
d5 {[%clk 0:01:56.8]} 25... Nc7 {[%clk 0:01:58.7]} 26. Rfd1 {[%clk 0:01:58.1]}
26... Nb5 {[%clk 0:01:55.6]} 27. Qe2 {[%clk 0:01:50.6]} 27... Nd6 {[%clk
0:01:55.3]} 28. Qa6 {[%clk 0:01:50.2]} 28... Rb8 {[%clk 0:01:42.6]} 29. Qa7
{[%clk 0:01:42.6]} 29... c4 {[%clk 0:01:32.1]} 30. Qc7 {[%clk 0:01:37.9]} 30...
Qf8 {[%clk 0:01:29.6]} 31. Rd4 {[%clk 0:01:28.3]} 31... Qe7 {[%clk 0:01:25]} 32.
Rg4+ {[%clk 0:01:27.9]} 32... Kh8 {[%clk 0:01:21.5]} 33. Qc6 {[%clk 0:01:12.7]}
33... Rec8 {[%clk 0:01:15.2]} 34. Qa4 {[%clk 0:01:12.3]} 34... b5 {[%clk
0:01:15]} 35. Qb4 {[%clk 0:01:12.4]} 35... Qe5 {[%clk 0:01:08.5]} 36. Rf4 {[%clk
0:01:07]} 36... Ra8 {[%clk 0:01:06.5]} 37. e4 {[%clk 0:00:58.3]} 37... Ra1
{[%clk 0:00:58.9]} 38. Rxa1 {[%clk 0:00:56.4]} 38... Qxa1+ {[%clk 0:01:00.8]}
39. Kh2 {[%clk 0:00:57.7]} 39... Qe5 {[%clk 0:01:02.7]} 40. Rg4 {[%clk
0:00:35.3]} 40... c3 {[%clk 0:00:56.8]} 41. f4 {[%clk 0:00:33.3]} 41... Qe7
{[%clk 0:00:52.7]} 42. e5 {[%clk 0:00:28.2]} 42... fxe5 {[%clk 0:00:47.6]} 43.
fxe5 {[%clk 0:00:20.2]} 43... Qxe5 {[%clk 0:00:49.5]} 44. Rf4 {[%clk 0:00:14.4]}
44... c2 {[%clk 0:00:47.1]} 45. Bh3 {[%clk 0:00:14.4]} 45... Qe2+ {[%clk
0:00:43]} 0-1

[Event "*** Titled Tuesday 3|2 Blitz"]
[Site "Chess.com"]
[Date "2016.09.06"]
[Round "3"]
[White "severomorskij"]
[Black "jb2mix"]
[Result "1-0"]
[WhiteElo "2596"]
[BlackElo "2419"]
[TimeControl "180+2"]
[EndTime "11:34:56 PDT"]
[Termination "severomorskij won by resignation"]

1. d4 {[%clk 0:03:01.9]} 1... Nf6 {[%clk 0:02:58.7]} 2. Bg5 {[%clk 0:03:00.2]}
2... d5 {[%clk 0:02:58.3]} 3. Nd2 {[%clk 0:03:00]} 3... c6 {[%clk 0:02:57.2]} 4.
e3 {[%clk 0:02:58.1]} 4... Bg4 {[%clk 0:02:51.5]} 5. Ngf3 {[%clk 0:02:56.2]}
5... Nbd7 {[%clk 0:02:49.2]} 6. h3 {[%clk 0:02:52.5]} 6... Bh5 {[%clk
0:02:46.6]} 7. g4 {[%clk 0:02:47.7]} 7... Bg6 {[%clk 0:02:47.1]} 8. Ne5 {[%clk
0:02:48.3]} 8... e6 {[%clk 0:02:29.4]} 9. Bg2 {[%clk 0:02:44.3]} 9... Be7 {[%clk
0:02:20.8]} 10. Nxg6 {[%clk 0:02:42.5]} 10... hxg6 {[%clk 0:02:21.1]} 11. Bf4
{[%clk 0:02:43.7]} 11... Qb6 {[%clk 0:02:18]} 12. Rb1 {[%clk 0:02:43.3]} 12...
c5 {[%clk 0:02:17.6]} 13. c3 {[%clk 0:02:43.5]} 13... Qa6 {[%clk 0:02:13.5]} 14.
a3 {[%clk 0:02:42.2]} 14... Rc8 {[%clk 0:02:13.6]} 15. Qe2 {[%clk 0:02:37.9]}
15... Qxe2+ {[%clk 0:02:13.3]} 16. Kxe2 {[%clk 0:02:39.4]} 16... Nb6 {[%clk
0:02:07.6]} 17. Rhc1 {[%clk 0:02:28.9]} 17... Kd7 {[%clk 0:02:04.8]} 18. dxc5
{[%clk 0:02:28.2]} 18... Bxc5 {[%clk 0:02:01.6]} 19. c4 {[%clk 0:02:28.7]} 19...
Bd6 {[%clk 0:01:50.5]} 20. Bxd6 {[%clk 0:02:10.7]} 20... Kxd6 {[%clk 0:01:52.4]}
21. b4 {[%clk 0:02:10.8]} 21... Nxc4 {[%clk 0:01:47.2]} 22. Nxc4+ {[%clk
0:02:11.2]} 22... dxc4 {[%clk 0:01:40.9]} 23. Bxb7 {[%clk 0:02:09.7]} 23... Rc7
{[%clk 0:01:38.8]} 24. Bg2 {[%clk 0:02:08.5]} 24... Nd5 {[%clk 0:01:17.2]} 25.
Rd1 {[%clk 0:01:44.2]} 25... Ke7 {[%clk 0:01:12.7]} 26. Bxd5 {[%clk 0:01:41.3]}
26... exd5 {[%clk 0:01:14.6]} 27. Rxd5 {[%clk 0:01:42]} 27... Rxh3 {[%clk
0:01:15.5]} 28. Rc1 {[%clk 0:01:37.2]} 28... Rh4 {[%clk 0:01:07.3]} 29. Rd4
{[%clk 0:01:36]} 29... c3 {[%clk 0:01:04.7]} 30. Kd3 {[%clk 0:01:33]} 30... Rh2
{[%clk 0:01:04.9]} 31. Rc2 {[%clk 0:01:24.8]} 31... Rg2 {[%clk 0:01:02.8]} 32.
a4 {[%clk 0:01:18.5]} 32... g5 {[%clk 0:00:59.6]} 33. b5 {[%clk 0:01:19.2]}
33... g6 {[%clk 0:00:46.8]} 34. Rxc3 {[%clk 0:01:10.6]} 34... Rxc3+ {[%clk
0:00:46.5]} 35. Kxc3 {[%clk 0:01:12.1]} 35... Rxf2 {[%clk 0:00:48]} 36. a5
{[%clk 0:01:09]} 36... Ra2 {[%clk 0:00:38.7]} 37. b6 {[%clk 0:00:57.3]} 37...
axb6 {[%clk 0:00:35]} 38. axb6 {[%clk 0:00:57.7]} 38... Ra8 {[%clk 0:00:35.8]}
39. Kb4 {[%clk 0:00:54.6]} 39... f5 {[%clk 0:00:32.8]} 40. Kb5 {[%clk
0:00:53.8]} 40... Ke6 {[%clk 0:00:30.1]} 41. b7 {[%clk 0:00:49.1]} 41... Rh8
{[%clk 0:00:28.2]} 42. Rc4 {[%clk 0:00:37.2]} 42... Rb8 {[%clk 0:00:26.8]} 43.
Kb6 {[%clk 0:00:33.3]} 43... fxg4 {[%clk 0:00:10.4]} 44. Rxg4 {[%clk 0:00:32.9]}
44... Kf5 {[%clk 0:00:11.6]} 45. Rg1 {[%clk 0:00:30.7]} 45... Rh8 {[%clk
0:00:11.8]} 46. Ka7 {[%clk 0:00:29.5]} 46... Rh2 {[%clk 0:00:05]} 47. b8=Q
{[%clk 0:00:27.5]} 47... Ra2+ {[%clk 0:00:06.7]} 48. Kb7 {[%clk 0:00:28.8]}
48... Rb2+ {[%clk 0:00:08.4]} 49. Kc8 {[%clk 0:00:29.9]} 49... Rxb8+ {[%clk
0:00:09.9]} 50. Kxb8 {[%clk 0:00:31.2]} 1-0

[Event "*** Titled Tuesday 3|2 Blitz"]
[Site "Chess.com"]
[Date "2016.09.06"]
[Round "3"]
[White "Gabrielian_Artur"]
[Black "Tesla37"]
[Result "0-1"]
[WhiteElo "2514"]
[BlackElo "2602"]
[TimeControl "180+2"]
[EndTime "11:35:04 PDT"]
[Termination "Tesla37 won by resignation"]

1. e4 {[%clk 0:03:01.9]} 1... c5 {[%clk 0:03:00.5]} 2. Nf3 {[%clk 0:03:02.7]}
2... e6 {[%clk 0:03:01.6]} 3. d4 {[%clk 0:03:03.7]} 3... cxd4 {[%clk 0:03:02.7]}
4. Nxd4 {[%clk 0:03:05.1]} 4... Nc6 {[%clk 0:03:04.3]} 5. Nc3 {[%clk 0:03:05.4]}
5... a6 {[%clk 0:03:05.3]} 6. Be3 {[%clk 0:03:05.1]} 6... Qc7 {[%clk 0:03:03.8]}
7. Bd3 {[%clk 0:03:05.8]} 7... Nf6 {[%clk 0:03:03.8]} 8. O-O {[%clk 0:03:06.9]}
8... h5 {[%clk 0:03:04.8]} 9. h3 {[%clk 0:03:06]} 9... Bd6 {[%clk 0:03:00.2]}
10. Nxc6 {[%clk 0:03:03]} 10... dxc6 {[%clk 0:02:56.6]} 11. Qf3 {[%clk
0:02:49.7]} 11... Ng4 {[%clk 0:02:33.8]} 12. Rfd1 {[%clk 0:02:36.3]} 12... Bh2+
{[%clk 0:02:28.3]} 13. Kf1 {[%clk 0:02:29.9]} 13... Nxe3+ {[%clk 0:02:25.8]} 14.
Qxe3 {[%clk 0:02:30.4]} 14... Be5 {[%clk 0:02:25.5]} 15. Rab1 {[%clk 0:02:27.7]}
15... c5 {[%clk 0:02:18.8]} 16. Qf3 {[%clk 0:02:06.9]} 16... b5 {[%clk
0:02:09.5]} 17. a3 {[%clk 0:02:03.8]} 17... Bb7 {[%clk 0:02:03.8]} 18. Be2
{[%clk 0:02:00.1]} 18... g6 {[%clk 0:01:59.7]} 19. Na2 {[%clk 0:01:54.5]} 19...
O-O {[%clk 0:01:42.3]} 20. c4 {[%clk 0:01:54.4]} 20... Bc6 {[%clk 0:01:41.6]}
21. cxb5 {[%clk 0:01:50.7]} 21... axb5 {[%clk 0:01:41.6]} 22. Nc1 {[%clk
0:01:42.9]} 22... c4 {[%clk 0:01:37.8]} 23. Na2 {[%clk 0:01:40.6]} 23... Rfd8
{[%clk 0:01:34.7]} 24. Nc3 {[%clk 0:01:41.3]} 24... Qa5 {[%clk 0:01:30]} 25. Qe3
{[%clk 0:01:34.5]} 25... Rxd1+ {[%clk 0:01:17.9]} 26. Rxd1 {[%clk 0:01:23]}
26... Bxc3 {[%clk 0:01:18]} 27. bxc3 {[%clk 0:01:24]} 27... Qxa3 {[%clk
0:01:18.9]} 28. Bxh5 {[%clk 0:01:21.1]} 28... gxh5 {[%clk 0:01:01.7]} 29. Qg5+
{[%clk 0:01:21.7]} 29... Kf8 {[%clk 0:01:02.7]} 30. Qxh5 {[%clk 0:00:46.8]}
30... Ke8 {[%clk 0:01:00.3]} 31. Qh8+ {[%clk 0:00:45.8]} 31... Qf8 {[%clk
0:00:59.8]} 32. Qe5 {[%clk 0:00:46.8]} 32... Rd8 {[%clk 0:00:40]} 33. Ra1 {[%clk
0:00:18.7]} 33... Qd6 {[%clk 0:00:32.8]} 34. Qh8+ {[%clk 0:00:19.8]} 34... Kd7
{[%clk 0:00:27.1]} 35. Qh4 {[%clk 0:00:20.1]} 35... Kc7 {[%clk 0:00:24.3]} 36.
Kg1 {[%clk 0:00:20.4]} 36... Ra8 {[%clk 0:00:17.3]} 37. Rf1 {[%clk 0:00:18.9]}
37... b4 {[%clk 0:00:18.4]} 38. cxb4 {[%clk 0:00:19.8]} 38... c3 {[%clk
0:00:19.5]} 39. Qf6 {[%clk 0:00:21]} 39... Qxb4 {[%clk 0:00:19.4]} 40. Qxf7+
{[%clk 0:00:21.9]} 40... Kb6 {[%clk 0:00:20.4]} 41. Qxe6 {[%clk 0:00:22.6]}
41... c2 {[%clk 0:00:21]} 42. Qh6 {[%clk 0:00:23.8]} 42... Qc3 {[%clk
0:00:21.3]} 43. Qc1 {[%clk 0:00:21]} 43... Rd8 {[%clk 0:00:21.3]} 44. e5 {[%clk
0:00:18.9]} 44... Bb5 {[%clk 0:00:22.1]} 45. Qg5 {[%clk 0:00:17]} 45... Rd1
{[%clk 0:00:18.1]} 46. Qh6+ {[%clk 0:00:15.2]} 46... Ka5 {[%clk 0:00:18.2]} 0-1

[Event "*** Titled Tuesday 3|2 Blitz"]
[Site "Chess.com"]
[Date "2016.09.06"]
[Round "3"]
[White "ruifeng"]
[Black "Baggio95"]
[Result "1/2-1/2"]
[WhiteElo "2336"]
[BlackElo "2330"]
[TimeControl "180+2"]
[EndTime "11:35:07 PDT"]
[Termination "Game drawn by agreement"]

1. e4 {[%clk 0:03:01.9]} 1... e5 {[%clk 0:02:56.1]} 2. Nf3 {[%clk 0:03:01.3]}
2... Nc6 {[%clk 0:02:55.9]} 3. Bb5 {[%clk 0:02:59.5]} 3... a6 {[%clk 0:02:55.4]}
4. Ba4 {[%clk 0:02:59.7]} 4... Nge7 {[%clk 0:02:54.1]} 5. c3 {[%clk 0:02:55.9]}
5... g6 {[%clk 0:02:53.6]} 6. d4 {[%clk 0:02:56.9]} 6... exd4 {[%clk 0:02:53.6]}
7. cxd4 {[%clk 0:02:57.8]} 7... b5 {[%clk 0:02:53.7]} 8. Bb3 {[%clk 0:02:57.9]}
8... Bg7 {[%clk 0:02:54.1]} 9. O-O {[%clk 0:02:56.2]} 9... O-O {[%clk
0:02:50.5]} 10. Nc3 {[%clk 0:02:44.2]} 10... Na5 {[%clk 0:02:50.5]} 11. Bc2
{[%clk 0:02:44.6]} 11... d6 {[%clk 0:02:51]} 12. h3 {[%clk 0:02:44.8]} 12... c5
{[%clk 0:02:49.3]} 13. Ne2 {[%clk 0:02:41.3]} 13... Bb7 {[%clk 0:02:44.1]} 14.
Rb1 {[%clk 0:02:28.8]} 14... Rc8 {[%clk 0:02:27.9]} 15. b3 {[%clk 0:02:27.7]}
15... c4 {[%clk 0:02:18.2]} 16. Bg5 {[%clk 0:02:12.7]} 16... h6 {[%clk
0:02:13.8]} 17. Be3 {[%clk 0:02:12.4]} 17... Qc7 {[%clk 0:02:09]} 18. b4 {[%clk
0:02:08.6]} 18... Nac6 {[%clk 0:02:08.8]} 19. Nc3 {[%clk 0:02:09.5]} 19... Qd7
{[%clk 0:01:56.4]} 20. Qd2 {[%clk 0:02:08.4]} 20... Kh7 {[%clk 0:01:53]} 21. d5
{[%clk 0:02:09.2]} 21... Ne5 {[%clk 0:01:49.1]} 22. Nd4 {[%clk 0:01:53]} 22...
Qc7 {[%clk 0:01:20.5]} 23. f4 {[%clk 0:01:53.2]} 23... Nd3 {[%clk 0:01:19.4]}
24. Bxd3 {[%clk 0:01:43.9]} 24... cxd3 {[%clk 0:01:19.6]} 25. Rfc1 {[%clk
0:01:44.6]} 25... Qd7 {[%clk 0:00:49.1]} 26. Qxd3 {[%clk 0:01:44.8]} 26... Rc4
{[%clk 0:00:47.9]} 27. Nce2 {[%clk 0:01:38.4]} 27... Rfc8 {[%clk 0:00:47.9]} 28.
Rxc4 {[%clk 0:01:30.2]} 28... bxc4 {[%clk 0:00:48.4]} 29. Qc2 {[%clk 0:01:27]}
29... f5 {[%clk 0:00:48.1]} 30. Ne6 {[%clk 0:01:21.8]} 30... fxe4 {[%clk
0:00:41.9]} 31. Nxg7 {[%clk 0:01:22.5]} 31... Kxg7 {[%clk 0:00:42.4]} 32. Qxe4
{[%clk 0:01:23.1]} 32... Nxd5 {[%clk 0:00:40.7]} 33. Bd4+ {[%clk 0:01:13.1]}
33... Kh7 {[%clk 0:00:41.5]} 34. Qc2 {[%clk 0:01:13.8]} 34... Qf5 {[%clk
0:00:36.3]} 35. Qxf5 {[%clk 0:01:08.2]} 35... gxf5 {[%clk 0:00:38.2]} 36. g3
{[%clk 0:01:01.8]} 36... Re8 {[%clk 0:00:36.2]} 37. Kf2 {[%clk 0:01:02]} 37...
Kg6 {[%clk 0:00:33.4]} 38. Nc3 {[%clk 0:01:02]} 38... Nxc3 {[%clk 0:00:33.2]}
39. Bxc3 {[%clk 0:01:03.1]} 39... Be4 {[%clk 0:00:34]} 40. Rd1 {[%clk
0:01:00.4]} 40... Bd3 {[%clk 0:00:34.4]} 41. Re1 {[%clk 0:01:01.1]} 41... Rxe1
{[%clk 0:00:32.5]} 42. Bxe1 {[%clk 0:01:00.5]} 42... Kf7 {[%clk 0:00:26.9]} 43.
Bc3 {[%clk 0:01:01.3]} 43... h5 {[%clk 0:00:25.8]} 44. Ke3 {[%clk 0:01:00.1]}
44... Bf1 {[%clk 0:00:26.4]} 45. Kd4 {[%clk 0:00:54.3]} 45... Ke6 {[%clk
0:00:25.8]} 46. a4 {[%clk 0:00:51.1]} 46... Bxh3 {[%clk 0:00:25.7]} 47. Kxc4
{[%clk 0:00:50.8]} 47... Bf1+ {[%clk 0:00:26.5]} 48. Kd4 {[%clk 0:00:51.5]}
48... Be2 {[%clk 0:00:27.4]} 49. Bd2 {[%clk 0:00:50.1]} 49... Bf1 {[%clk
0:00:28.2]} 50. Be3 {[%clk 0:00:51]} 50... Be2 {[%clk 0:00:29.1]} 51. Bc1 {[%clk
0:00:40.4]} 51... Kd7 {[%clk 0:00:28.1]} 52. Bd2 {[%clk 0:00:36.1]} 1/2-1/2

[Event "*** Titled Tuesday 3|2 Blitz"]
[Site "Chess.com"]
[Date "2016.09.06"]
[Round "3"]
[White "Abdodi"]
[Black "Polemistis"]
[Result "1-0"]
[WhiteElo "1942"]
[BlackElo "1816"]
[TimeControl "180+2"]
[EndTime "11:35:27 PDT"]
[Termination "Abdodi won by resignation"]

1. d4 {[%clk 0:02:58.3]} 1... Nf6 {[%clk 0:03:00.5]} 2. Nf3 {[%clk 0:02:58.3]}
2... e6 {[%clk 0:03:00.6]} 3. c4 {[%clk 0:02:58.6]} 3... Bb4+ {[%clk 0:03:00.2]}
4. Bd2 {[%clk 0:02:59.2]} 4... Qe7 {[%clk 0:03:00.8]} 5. g3 {[%clk 0:02:59.7]}
5... Nc6 {[%clk 0:02:59.7]} 6. Nc3 {[%clk 0:02:59.6]} 6... O-O {[%clk
0:02:58.5]} 7. Bg2 {[%clk 0:02:59.9]} 7... Bxc3 {[%clk 0:02:59.7]} 8. Bxc3
{[%clk 0:03:00.4]} 8... Ne4 {[%clk 0:03:01.4]} 9. Rc1 {[%clk 0:03:01.9]} 9... d6
{[%clk 0:02:59.5]} 10. O-O {[%clk 0:03:02.5]} 10... Nxc3 {[%clk 0:02:55.5]} 11.
Rxc3 {[%clk 0:03:02.9]} 11... e5 {[%clk 0:02:57.1]} 12. d5 {[%clk 0:03:00.5]}
12... Nb8 {[%clk 0:02:57.5]} 13. b4 {[%clk 0:02:59.5]} 13... a5 {[%clk
0:02:57.9]} 14. a3 {[%clk 0:02:58.8]} 14... Na6 {[%clk 0:02:56.7]} 15. Qb3
{[%clk 0:02:57.4]} 15... Bd7 {[%clk 0:02:54.8]} 16. Rfc1 {[%clk 0:02:57.1]}
16... b6 {[%clk 0:02:46.9]} 17. Nd2 {[%clk 0:02:42.4]} 17... f5 {[%clk
0:02:46.2]} 18. Qb1 {[%clk 0:02:34.5]} 18... Rfb8 {[%clk 0:02:39.7]} 19. e4
{[%clk 0:02:12.2]} 19... Rf8 {[%clk 0:02:39.1]} 20. exf5 {[%clk 0:02:03]} 20...
Bxf5 {[%clk 0:02:39.5]} 21. Qb3 {[%clk 0:02:03.3]} 21... Qd7 {[%clk 0:02:19.2]}
22. Ne4 {[%clk 0:01:43.3]} 22... Bh3 {[%clk 0:02:15.5]} 23. Bh1 {[%clk 0:01:43]}
23... Qe7 {[%clk 0:01:36.5]} 24. c5 {[%clk 0:01:40.7]} 24... axb4 {[%clk
0:01:21.9]} 25. cxd6 {[%clk 0:01:35.1]} 25... cxd6 {[%clk 0:01:21.9]} 26. axb4
{[%clk 0:01:35.7]} 26... Bd7 {[%clk 0:01:19.4]} 27. Ra1 {[%clk 0:01:19]} 27...
Nc5 {[%clk 0:01:08]} 28. Qb1 {[%clk 0:01:18.4]} 28... Rxa1 {[%clk 0:01:06.9]}
29. Qxa1 {[%clk 0:01:17.4]} 29... Nxe4 {[%clk 0:01:07.6]} 30. Bxe4 {[%clk
0:01:18]} 30... Bf5 {[%clk 0:01:08.5]} 31. Bxf5 {[%clk 0:01:00.3]} 31... Rxf5
{[%clk 0:01:10.4]} 32. Rc8+ {[%clk 0:00:59.3]} 32... Rf8 {[%clk 0:01:10.3]} 33.
Qa8 {[%clk 0:00:59.8]} 33... Qf7 {[%clk 0:01:02.9]} 34. Rxf8+ {[%clk 0:00:58.5]}
34... Qxf8 {[%clk 0:01:03.8]} 35. Qc6 {[%clk 0:00:50.6]} 35... Qd8 {[%clk
0:00:56.2]} 36. Kf1 {[%clk 0:00:51.4]} 36... Kf7 {[%clk 0:00:55.5]} 37. Ke2
{[%clk 0:00:51.1]} 37... Kf6 {[%clk 0:00:54.4]} 38. Kd3 {[%clk 0:00:49.3]} 38...
Kf5 {[%clk 0:00:51.1]} 39. Kc4 {[%clk 0:00:48.4]} 39... Ke4 {[%clk 0:00:51.7]}
40. Kb5 {[%clk 0:00:47.4]} 40... Kf3 {[%clk 0:00:50.2]} 41. Qxb6 {[%clk
0:00:37.8]} 41... Qxb6+ {[%clk 0:00:49.7]} 42. Kxb6 {[%clk 0:00:39]} 42... Kxf2
{[%clk 0:00:51.6]} 43. Kc7 {[%clk 0:00:40.6]} 43... e4 {[%clk 0:00:53.5]} 44. b5
{[%clk 0:00:42.5]} 44... e3 {[%clk 0:00:55.4]} 45. b6 {[%clk 0:00:44.4]} 45...
e2 {[%clk 0:00:57.3]} 46. b7 {[%clk 0:00:46.3]} 46... e1=Q {[%clk 0:00:57.8]}
47. b8=Q {[%clk 0:00:48.2]} 47... Qe7+ {[%clk 0:00:48]} 48. Kc6 {[%clk
0:00:47.6]} 48... Kg2 {[%clk 0:00:46.5]} 49. Qxd6 {[%clk 0:00:46.4]} 49... Qe1
{[%clk 0:00:47]} 50. g4 {[%clk 0:00:39.7]} 50... Qc3+ {[%clk 0:00:47.2]} 51. Kd7
{[%clk 0:00:37.7]} 51... Qf3 {[%clk 0:00:39.5]} 52. Qg3+ {[%clk 0:00:33.8]}
52... Qxg3 {[%clk 0:00:40.7]} 53. hxg3 {[%clk 0:00:35.7]} 53... Kxg3 {[%clk
0:00:42.1]} 54. Ke6 {[%clk 0:00:37.1]} 54... Kxg4 {[%clk 0:00:43.5]} 55. d6
{[%clk 0:00:38.6]} 55... h5 {[%clk 0:00:45]} 56. d7 {[%clk 0:00:40.5]} 56... h4
{[%clk 0:00:46.6]} 57. d8=Q {[%clk 0:00:42.4]} 57... h3 {[%clk 0:00:48.1]} 58.
Qd1+ {[%clk 0:00:42.9]} 58... Kg3 {[%clk 0:00:49.6]} 59. Qg1+ {[%clk 0:00:43.1]}
59... Kf3 {[%clk 0:00:49.1]} 60. Kf5 {[%clk 0:00:42.5]} 60... g6+ {[%clk
0:00:49.8]} 61. Kxg6 {[%clk 0:00:42.9]} 1-0